Cogmind - Beta 10.2 *** ADVENTURER MODE // 2022.02.21 @ 23:55:37 Player: Skitgris Result: Self-destructed Performance ------------- Evolutions (2) 1000 Regions Visited (4) 800 Robots Destroyed (48) 240 Value Destroyed (1109) 1109 Prototype IDs (1) 20 Alien Tech Used (0) 0 Bonus (90) 90 TOTAL SCORE: 3259 Bonus ------- High Alert Combat Kills 90 Cogmind --------- Core Integrity 357/550 Matter 300/300 Energy 6/100 System Corruption 1% Temperature Cool (0) Movement Flying (29) Location -8/Materials Parts ------- > --- POWER (2) -------- (None) > --- PROPULSION (3) --- Improved Flight Unit Improved Flight Unit Improved Flight Unit > --- UTILITY (4) ------ Small Storage Unit Advanced Weight Redist. System Seismic Analyzer Reactive Plating > --- WEAPON (2) ------- Great Axe > --- INVENTORY (6) ---- Wheel Compact Wheel Improved Flight Unit Improved Flight Unit Advanced Terrain Scanner Heavy EM Pulse Gun Peak State ------------ > --- POWER ------------ Ion Engine Light Ion Engine > --- PROPULSION ------- Improved Flight Unit Improved Flight Unit Improved Flight Unit > --- UTILITY ---------- Small Storage Unit Advanced Weight Redist. System Seismic Analyzer High-powered Tractor Beam > --- WEAPON ----------- Rocket Launcher Great Axe > --- INVENTORY -------- Wheel Compact Wheel Improved Flight Unit Improved Flight Unit Advanced Terrain Scanner Heavy EM Pulse Gun [Rating: 25] Favorites ----------- Power Light Ion Engine Engine Light Ion Engine Propulsion Improved Flight Unit Leg Aluminum Leg Flight Unit Improved Flight Unit Utility Small Storage Unit Device High-powered Tractor Beam Storage Small Storage Unit Processor Seismic Analyzer Protection Reactive Plating Weapon Rocket Launcher Energy Gun Small Laser Launcher Rocket Launcher Slashing Weapon Great Axe Build | -11 -10 -9 -9 -8 ------- Run | Scr Mat Mat Min Mat Slots Evolved 4 | . . 2 . 2 Power 1 | . . . . 1 Propulsion 1 | . . . . 1 Utility 2 | . . 2 . . Weapon . | . . . . . Parts Attached 33 | 1 . 12 11 9 Power 3 | . . 1 . 2 Engine 3 | . . 1 . 2 Core . | . . . . . Reactor . | . . . . . Propulsion 5 | . . 3 . 2 Treads . | . . . . . Leg . | . . . . . Wheel . | . . . . . Hover . | . . . . . Flight 5 | . . 3 . 2 Utility 6 | 1 . 2 1 2 Device 4 | . . 2 1 1 Storage . | . . . . . Processor 1 | 1 . . . . Hackware . | . . . . . Protection 1 | . . . . 1 Artifact . | . . . . . Weapon 19 | . . 6 10 3 Energy Gun 9 | . . 5 4 . Energy Cannon . | . . . . . Ballistic Gun . | . . . . . Ballistic Cannon . | . . . . . Launcher 9 | . . 1 6 2 Special Weapon . | . . . . . Impact Weapon . | . . . . . Slashing Weapon 1 | . . . . 1 Piercing Weapon . | . . . . . Special Melee Weapon . | . . . . . Unidentified Prototypes 1 | . . 1 . . Parts Lost 14 | . . 7 . 7 Power 4 | . . 1 . 3 Propulsion 1 | . . . . 1 Utility 3 | . . 2 . 1 Weapon 6 | . . 4 . 2 Highest Loss Streak 5 | . . 5 . 3 Average Slot Usage (%) 81 | . 100 81 75 79 Engine 9 | . 14 11 11 6 Leg 5 | . 28 10 . . Flight 17 | . . 11 22 23 Device 10 | . . 7 9 15 Storage 10 | . 14 11 11 9 Processor 10 | . 14 11 11 9 Energy Gun 7 | . 28 16 1 . Launcher 6 | . . 3 10 8 Slashing Weapon 2 | . . . . 6 Naked Turns . | . . . . . Heaviest Build 27 | 10 10 13 13 27 Greatest Support 27 | 20 20 20 12 27 Greatest Overweight (x) 2 | . . 2 1 2 Average Overweight (x) . | . . . . . Largest Inventory Capacity 6 | 6 6 6 6 6 Average Capacity 6 | 6 6 6 6 6 Most Carried 6 | 6 6 6 5 6 Average Carried 5 | 6 6 5 4 5 Final Capacity 6 | 6 6 6 6 6 Final Carried 6 | 6 6 4 5 6 Class Distribution -------------------- 68% | Sprinter 31% | Mutant Dominant Class ---------------- Mutant | -10/Materials Sprinter | -9/Materials Sprinter | -9/Mines Sprinter | -8/Materials Resources | -11 -10 -9 -9 -8 ----------- Run | Scr Mat Mat Min Mat Matter Collected 723 | 200 . 95 170 258 Remotely 357 | . . . 109 248 Salvage Created 1341 | 30 58 437 303 513 Parts 91 | 5 3 21 32 30 Haulers Intercepted 4 | . 1 1 . 2 Recyclers Shooed . | . . . . . Parts Field Recycled . | . . . . . Retrieved Matter . | . . . . . Parts Self-Destructed . | . . . . . Prevented . | . . . . . Kills | -11 -10 -9 -9 -8 ------- Run | Scr Mat Mat Min Mat Combat Hostiles Destroyed 35 | . . 11 16 8 Melee 8 | . . . . 8 Guns 12 | . . 10 2 . AOE 14 | . . . 14 . Classes Destroyed 10 | 1 1 5 1 2 Worker 2 | . . . . 2 Builder 1 | . . . 1 . Tunneler 3 | 1 . 1 . 1 Hauler 4 | . 1 1 . 2 Recycler 1 | . . . . 1 Watcher 2 | . . 1 . 1 Swarmer 15 | . . 3 9 3 Grunt 16 | . . 6 7 3 Brawler 1 | . . 1 . . Sentry 3 | . . 1 . 2 Best Kill Streak 6 | 1 1 4 6 4 Combat Bots Only 6 | . . 4 6 4 Max Kills in Single Turn 3 | 1 1 1 3 1 Gunslinging . | . . . . . Exploded 3 | . . . 3 . Melee 1 | . . . . 1 Uniques/NPCs Destroyed . | . . . . . Combat | -11 -10 -9 -9 -8 -------- Run | Scr Mat Mat Min Mat Damage Taken 1352 | . 24 528 159 641 Core 439 | . 12 156 78 193 Absorbed by Shields . | . . . . . Core Remaining (%) 78 | 100 95 . 41 . Volleys Fired 78 | 3 3 41 24 7 Largest 2 | 2 2 2 1 1 Hottest 90 | 90 90 90 45 33 Shots Fired 101 | 6 6 58 24 7 Gun 77 | 6 6 57 8 . Cannon . | . . . . . Launcher 24 | . . 1 16 7 Special . | . . . . . Kinetic . | . . . . . Thermal 64 | 6 6 52 . . Explosive 22 | . . 1 16 5 Electromagnetic 15 | . . 5 8 2 Robot Hit Streak 43 | 5 6 43 6 6 Robot Miss Streak 2 | . 1 2 2 1 Penetration Max . | . . . . . Secondary Targets 1 | . . 1 . . Max Gunslinging Chain 1 | . . 1 . . Shots Hit Robots 108 | 5 5 52 11 35 Core Hits 77 | 1 2 36 22 16 Critical Hits 3 | . . . . 3 Critical Kills 2 | . . . . 2 Critical Parts Destroyed 1 | . . . . 1 Melee Attacks 32 | . . . . 32 Impact . | . . . . . Slashing 32 | . . . . 32 Piercing . | . . . . . Sneak Attacks 5 | . . . . 5 Combat Hostiles . | . . . . . Follow-up Attacks . | . . . . . Damage Inflicted 4001 | 59 57 683 1356 1846 Guns 892 | 59 57 683 93 . Cannons . | . . . . . Explosions 1482 | . . . 1263 219 Melee 1627 | . . . . 1627 Ramming . | . . . . . Kinetic . | . . . . . Thermal 777 | 59 57 633 28 . Explosive 1437 | . . . 1235 202 Electromagnetic 160 | . . 50 93 17 Impact . | . . . . . Slashing 1627 | . . . . 1627 Piercing . | . . . . . Highest Corruption 1 | . . . . 1 Average Corruption 1 | . . . . 1 Corruption Purged . | . . . . . Overload Shots . | . . . . . Overflow Damage 350 | . . 46 59 245 Projectiles . | . . . . . Explosions 164 | . . 46 59 59 Melee 186 | . . . . 186 Knockbacks . | . . . . . Impact . | . . . . . Kinetic . | . . . . . Secondary . | . . . . . Self-Inflicted Damage 367 | . . 166 20 181 Shots 8 | . . 3 1 4 Rammed . | . . . . . Targets Rammed . | . . . . . Kicked . | . . . . . Crushed . | . . . . . Highest Temperature 183 | 60 99 183 49 10 Average Temperature 42 | 28 49 53 17 5 Received Heat Transfer 591 | . 18 222 63 288 Siege Activations . | . . . . . Robots Corrupted . | . . . . . Combat Hostiles . | . . . . . Parts Fried . | . . . . . Impact Corruptions . | . . . . . Robots Melted 1 | . . 1 . . Combat Hostiles 1 | . . 1 . . Parts Melted 3 | . 1 2 . . Heat Transferred 1769 | 161 161 1397 50 . Parts Sabotaged . | . . . . . Parts Stolen . | . . . . . Parts Stripped . | . . . . . Power Chain Reactions 1 | . . . 1 . Missiles Intercepted . | . . . . . Alert | -11 -10 -9 -9 -8 ------- Run | Scr Mat Mat Min Mat Peak Influence 579 | 5 36 383 573 579 Initial 189 | . 2 12 125 189 Average 266 | 2 18 154 396 350 Maximum Alert Level 2 | . . 1 2 2 Low Security (%) 33 | 100 100 67 6 3 Level 1 43 | . . 32 31 68 Level 2 23 | . . . 61 28 Level 3 . | . . . . . Level 4 . | . . . . . Level 5 . | . . . . . High Security . | . . . . . Max Security . | . . . . . Squads Dispatched 3 | . . 1 . 2 Investigation 1 | . . 1 . . Extermination . | . . . . . Reinforcement 2 | . . . . 2 Assault . | . . . . . Garrison . | . . . . . Intercept . | . . . . . Construction Impeded . | . . . . . Haulers Reinforced . | . . . . . Stealth | -11 -10 -9 -9 -8 --------- Run | Scr Mat Mat Min Mat Distress Signals 7 | . 2 2 . 3 Communications Jammed . | . . . . . Distress Signals . | . . . . . Times Spotted 57 | . 3 16 13 25 Peak Tracking Total 7 | . 4 5 3 7 Tactical Retreats 7 | . . 3 . 4 Traps | -11 -10 -9 -9 -8 ------- Run | Scr Mat Mat Min Mat Traps Triggered 1 | . . 1 . . Indirectly . | . . . . . Trap Hack Attempts . | . . . . . Triggered . | . . . . . Disarmed . | . . . . . Reprogrammed . | . . . . . Reused . | . . . . . Traps Extracted . | . . . . . Installed . | . . . . . Triggered . | . . . . . Machines | -11 -10 -9 -9 -8 ---------- Run | Scr Mat Mat Min Mat Machines Disabled 7 | . . 3 2 2 Max in Single Turn 3 | . . 3 2 2 Machines Sabotaged . | . . . . . Garrisons Compromised . | . . . . . Overloaded Fab Kills . | . . . . . Fab Network Shutdowns . | . . . . . Hacking | -11 -10 -9 -9 -8 --------- Run | Scr Mat Mat Min Mat Machines Accessed 4 | . 1 3 . . Terminals 3 | . 1 2 . . Fabricators . | . . . . . Repair Stations . | . . . . . Recycling Units . | . . . . . Scanalyzers 1 | . . 1 . . Garrison Access . | . . . . . Total Hacks 9 | . 4 5 . . Successful 6 | . 2 4 . . Failed 3 | . 2 1 . . Catastrophic . | . . . . . Database Lockouts . | . . . . . Manual 7 | . 4 3 . . Terminals 7 | . 4 3 . . Fabricators . | . . . . . Repair Stations . | . . . . . Recycling Units . | . . . . . Scanalyzers 2 | . . 2 . . Garrison Access . | . . . . . Terminal Hacks 2 | . 1 1 . . Level Access Points 1 | . 1 . . . Branch Access Points 1 | . . 1 . . Fabricator Hacks . | . . . . . Repair Station Hacks . | . . . . . Recycling Unit Hacks . | . . . . . Scanalyzer 2 | . . 2 . . Insert Component 1 | . . 1 . . Analyze 1 | . . 1 . . Garrison Access Hacks . | . . . . . Unauthorized Hacks 2 | . 1 1 . . Terminals 2 | . 1 1 . . Botnet 2 | . 1 1 . . Fabricators . | . . . . . Repair Stations . | . . . . . Recycling Units . | . . . . . Scanalyzers . | . . . . . Garrison Access . | . . . . . Data Cores Recovered . | . . . . . Used . | . . . . . Hacking Detections 3 | . 1 2 . . Full Trace Events . | . . . . . Feedback Events . | . . . . . Feedback Blocked . | . . . . . Robot Schematics Acquired . | . . . . . Robots Built . | . . . . . Matter . | . . . . . Time . | . . . . . Total Robot Build Rating . | . . . . . Part Schematics Acquired 1 | . . 1 . . Parts Built . | . . . . . Matter . | . . . . . Time . | . . . . . Total Part Build Rating . | . . . . . Parts Repaired . | . . . . . Time . | . . . . . Parts Recycled . | . . . . . Recycled Matter . | . . . . . Retrieved Matter . | . . . . . Retrieved Components . | . . . . . Parts Scanalyzed 1 | . . 1 . . Part Schematics Acquired 1 | . . 1 . . Parts Damaged . | . . . . . Bothacking | -11 -10 -9 -9 -8 ------------ Run | Scr Mat Mat Min Mat Used RIF Installer . | . . . . . Robots Hacked . | . . . . . Non-combat . | . . . . . Combat . | . . . . . Robot Hacks Applied . | . . . . . Relay Couplers Released . | . . . . . Robots Rewired . | . . . . . Allies Hacked . | . . . . . Hacks Repelled . | . . . . . Allies | -11 -10 -9 -9 -8 -------- Run | Scr Mat Mat Min Mat Total Allies . | . . . . . Largest Group . | . . . . . Highest-Rated Group . | . . . . . Highest-Rated Ally . | . . . . . Total Orders . | . . . . . Ally Attacks . | . . . . . Total Damage . | . . . . . Kills . | . . . . . Allies Corrupted . | . . . . . Allies Melted . | . . . . . Intel | -11 -10 -9 -9 -8 ------- Run | Scr Mat Mat Min Mat Robot Analysis Total . | . . . . . Derelict Logs Recovered 2 | . . . 2 . Drone Launches . | . . . . . Drone Recoveries . | . . . . . Exploration | -11 -10 -9 -9 -8 ------------- Run | Scr Mat Mat Min Mat Turns Passed 1071 | 18 90 325 217 421 Spaces Moved 1147 | 7 68 316 443 313 Core 18 | . . . . 18 Treads . | . . . . . Legs 159 | 7 68 84 . . Wheels . | . . . . . Hover . | . . . . . Flight 970 | . . 232 443 295 Fastest Speed 29 | 120 120 32 32 29 Average Speed 47 | 120 120 59 32 37 Slowest Speed 175 | 120 120 175 102 150 Overloaded Moves . | . . . . . Propulsion Burnouts . | . . . . . Robots Hopped 1 | . . 1 . . Cave-ins Triggered . | . . . . . Exploration Rate (%) 36 | 2 22 34 87 37 Regions Visited 4 Branch Regions 1 Pre-discovered Areas 1 | . . . 1 . Known Exits Taken 2 | . 1 1 . . Unknown Exits Taken 2 | 1 . . 1 . Scrap Searched 1 | . . . 1 . Spaces Dug 56 | . . 5 . 51 Terrain Destroyed 294 | . . 61 148 85 Melee . | . . . . . Projectile . | . . . . . AOE 294 | . . 61 148 85 Terrain Rammed . | . . . . . Walls Destroyed . | . . . . . Machines Disabled . | . . . . . Actions | -11 -10 -9 -9 -8 --------- Run | Scr Mat Mat Min Mat Total 1512 | 10 70 393 489 550 Wait 203 | . . 15 6 182 Move 1141 | 6 67 313 442 313 Hop 1 | . . 1 . . Pick Up 10 | . . 3 2 5 Fast Attach 12 | 1 . 5 . 6 Attach 14 | . . 6 5 3 Detach 7 | . . 3 4 . Swap 7 | . . 1 6 . Drop 7 | . . 5 . 2 Fire 78 | 3 3 41 24 7 Melee 32 | . . . . 32 Ram . | . . . . . Kick . | . . . . . Crush . | . . . . . Escape Stasis . | . . . . . Rewire . | . . . . . Trap . | . . . . . Miscellaneous . | . . . . . Route ------- -11/Scrapyard -10/Materials (discovered 3 exits: *Mat x3) -9/Materials -9/Mines -8/Materials History --------- Turn | Location | Event 7 | -11/Scrapyard | Discovered new exit (range 3) 19 | -11/Scrapyard | Entered Materials 57 | -10/Materials | Identified exit to Materials 109 | -10/Materials | Entered another Materials area 109 | -9/Materials | Evolved 2 slots: Utility x2 330 | -9/Materials | Identified exit to Mines 334 | -9/Materials | Lost 5 parts (2u3w) 434 | -9/Materials | Entered Mines 464 | -9/Mines | Learned Materials garrison access intel 514 | -9/Mines | Learned location of Zion (-7) 519 | -9/Mines | Core integrity fell below 50% 550 | -9/Mines | Build established: Sprinter 582 | -9/Mines | Received a Rocket Launcher from a helpful Derelict 634 | -9/Mines | Discovered new exit (range 10) 651 | -9/Mines | Entered Materials 651 | -8/Materials | Evolved 2 slots: Power x1, Propulsion x1 652 | -8/Materials | Loaded intel: 1 garrison access location 695 | -8/Materials | Lost 3 parts (1p1n1w) 1072 | -8/Materials | Self-destructed Last Messages --------------- 00991_ Acquired Reactive Plating. 00995_ Acquired 10 matter. 01032_ G-47 Trooper destroyed. 01038_ Y-45 Defender destroyed. 01052_ W-25 Informer distress signal alerts nearby ally. 01052_ G-47 Trooper destroyed. 01054_ K-01 Serf collects debris. 01056_ Rocket Launcher destroyed. 01058_ K-01 Serf collects debris. 01061_ Destroyed Lgt. Nuclear Core. 01061_ Ion Engine destroyed. 01066_ R-06 Scavenger inserts Lgt. Assault Rifle into recycling unit. 01066_ G-47 Trooper suffers critical hit. 01066_ G-47 Trooper destroyed. 01067_ Recycling unit begins recycling process. 01067_ W-25 Informer distress signal alerts nearby ally. 01067_ K-01 Serf collects debris. 01069_ R-06 Scavenger inserts Flight Unit into recycling unit. 01070_ K-01 Serf collects debris. 01072_ R-06 Scavenger inserts Flight Unit into recycling unit. Map ----- +----------------------------------------------------+ | # """ +=%+[ ## #????????? | | # """ #=##! """ ## #????????? | | # """ # #?? """ ## #????????? | | #! # #?? """ ## #????????? | | ######## #??? ?# #????????? | | ???????# #??? ?# #????????? | | ???????# #?###+#### #????????? | | ???????# #?# #????????? | | ???????# #?# #####+##?? | | ?####### #?# ! #?? | | # # #?# #?? | | #= # #?# """ """ """ #?? | | # + #?# """ """ """ #?? | | # ! # #?# """ """ """ #?? | | #= # #?# #?? | | # ! # #?# #?? | | ######## #?# =### | | ???????# #?# ==[% | | ??##???# #?# !### | | ? ??# #?# #?? | | # """??# #?# #########?? | | # """ ?# #?# #?????????? | | # """ ?# #?# #?????????? | | # # ### #?????????? | | # """ =#*kg #?????????? | | # """ %@%=w #?????????? | | # """ #! s #?????????? | | # g]###+######o m #????????? | | # r ??????????# "? #????????? | | # "Y" ??????????# ?????????????? | | #Y"""??????????????????????????? | | # g??????????????????????????? | | # #+???????????????????????????? | | ??# ???????????????????????????? | | ??#????????????????????????????? | | ???????????????????????????????? | | ???????????????????????????????? | | ???????????????????????????????? | | ???????????????????????????????? | | ???????????????????????????????? | | ???????????????????????????????? | | ???????????????????????????????? | | ???????????????????????????????? | | ???????????????????????????????? | | ???????????????????????????????? | | ???????????????????????????????? | | ???????????????????????????????? | | ???????????????????????????????? | | ???????????????????????????????? | | ???????????????????????????????? | +----------------------------------------------------+ Best States ------------- Heat Dissipation 50 Energy Generation 15 Energy Capacity 275 Matter Stores 300 Matter Capacity 300 Sight Range 16 Robot Scan Range 13 Terrain Scan Density 60 Additional Mass Support 9 Armor Coverage 150 Resistance: KI 40 Resistance: TH 20 Resistance: EX 20 Resistance: EM 20 Resistance: I 20 Resistance: S 20 Resistance: P 20 Evasion (%) 64 Offensive Hacking 10 Item Schematics ----------------- Imp. Flight Unit | -9/Materials | Scanalyzed Robot Schematics ------------------ None Fabricated ------------ Nothing Alien Tech Used ----------------- None Achievements -------------- None Challenges ------------ None Game ------ Seed MicroGravmagTendrils Manual? 0 Play Time 00:21:31 Cumulative 43.9 hours Start 2022.02.21 @ 23:33:58 End 2022.02.21 @ 23:55:37 Sessions 1 Manual Loads 0 Difficulty Adventurer Special Mode None Game No. 54 Rogue 17 Adventurer 28 Explorer 9 Win Type - Total 1 Types 1/0/0/0/0/0/0/0/0 Lore% 24 Gallery% 39 Achievement% 34 Wizard Run 0 Options --------- ASCII 0 Keyboard 0 Movement Mouse Keybinds 0 Fullscreen 0 Font 32/Smallcaps Map View 76x50 Tactical HUD 1 Map Filters NONE Filters LOW_CONTRAST(13,24,33) Steam 1 RUN: f75533b0-5f76-49b1-8b81-c898fbe55028